[Event "December 5 Early 2023"]
[Site "https://www.chess.com"]
[Date "2023.12.05"]
[Round "6"]
[White "Zoete, Roelant"]
[Black "Saravana, Krishnan P."]
[Result "0-1"]
[Board "118"]
[TimeControl "180+1"]
[WhiteFideId "40103269"]
[BlackFideId "5018382"]
[WhiteElo "2264"]
[BlackElo "2546"]
[WhiteTeam "NED"]
[BlackTeam "IND"]
[WhiteClock "0:00:20"]
[BlackClock "0:00:47"]

1. e4 {[%clk 0:03:00]}  c6 {[%clk 0:02:59]} 2. d4 {[%clk 0:03:00]}  d5 {[%clk 0:02:57]} 3. exd5 {[%clk 0:03:01]}  cxd5 {[%clk 0:02:57]} 4. c4 {[%clk 0:03:01]}  Nf6 {[%clk 0:02:57]} 5. Nc3 {[%clk 0:03:00]}  Be6 {[%clk 0:02:54]} 6. c5 {[%clk 0:02:48]}  Nc6 {[%clk 0:02:53]} 7. Nf3 {[%clk 0:02:48]}  Bg4 {[%clk 0:02:47]} 8. h3 {[%clk 0:02:47]}  Bxf3 {[%clk 0:02:47]} 9. gxf3 {[%clk 0:02:38]}  a6 {[%clk 0:02:41]} 10. Bf4 {[%clk 0:02:35]}  g6 {[%clk 0:02:41]} 11. h4 {[%clk 0:02:26]}  Nh5 {[%clk 0:02:38]} 12. Be3 {[%clk 0:02:23]}  Bg7 {[%clk 0:02:38]} 13. f4 {[%clk 0:02:23]}  O-O {[%clk 0:02:37]} 14. Be2 {[%clk 0:02:21]}  Nf6 {[%clk 0:02:34]} 15. h5 {[%clk 0:02:19]}  b6 {[%clk 0:02:30]} 16. hxg6 {[%clk 0:02:18]}  hxg6 {[%clk 0:02:29]} 17. f5 {[%clk 0:02:16]}  gxf5 {[%clk 0:02:27]} 18. Bd3 {[%clk 0:02:12]}  e6 {[%clk 0:02:24]} 19. Bg5 {[%clk 0:02:07]}  bxc5 {[%clk 0:02:18]} 20. Qf3 {[%clk 0:02:04]}  cxd4 {[%clk 0:02:01]} 21. Qh3 {[%clk 0:02:02]}  Re8 {[%clk 0:02:00]} 22. Ne2 {[%clk 0:01:53]}  Qa5+ {[%clk 0:01:57]} 23. Kf1 {[%clk 0:01:51]}  Ne5 {[%clk 0:01:46]} 24. Bxf5 {[%clk 0:01:11]}  exf5 {[%clk 0:01:35]} 25. Qxf5 {[%clk 0:01:12]}  Neg4 {[%clk 0:01:21]} 26. Nf4 {[%clk 0:01:04]}  Qd2 {[%clk 0:01:16]} 27. Nd3 {[%clk 0:00:51]}  Qe2+ {[%clk 0:01:12]} 28. Kg2 {[%clk 0:00:50]}  Qe4+ {[%clk 0:01:11]} 29. Qxe4 {[%clk 0:00:49]}  dxe4 {[%clk 0:01:12]} 30. Nc5 {[%clk 0:00:47]}  Re5 {[%clk 0:01:10]} 31. Bxf6 {[%clk 0:00:44]}  Nxf6 {[%clk 0:01:05]} 32. Nb3 {[%clk 0:00:43]}  Nd5 {[%clk 0:01:01]} 33. Rh4 {[%clk 0:00:38]}  Rg5+ {[%clk 0:01:01]} 34. Kh3 {[%clk 0:00:36]}  Re8 {[%clk 0:00:54]} 35. a4 {[%clk 0:00:35]}  e3 {[%clk 0:00:53]} 36. fxe3 {[%clk 0:00:35]}  Rxe3+ {[%clk 0:00:50]} 37. Kh2 {[%clk 0:00:35]}  Rxb3 {[%clk 0:00:51]} 38. a5 {[%clk 0:00:35]}  Rxb2+ {[%clk 0:00:50]} 39. Kh3 {[%clk 0:00:35]}  Be5 {[%clk 0:00:49]} 40. Rh1 {[%clk 0:00:20]}  Rg3# {[%clk 0:00:47]} 0-1

[Event "December 5 Early 2023"]
[Site "https://www.chess.com"]
[Date "2023.12.05"]
[Round "6"]
[White "Osmak, Yuliia"]
[Black "Vila Dupla, Aurelio"]
[Result "1-0"]
[Board "119"]
[TimeControl "180+1"]
[WhiteFideId "14101602"]
[BlackFideId "2203383"]
[WhiteElo "2544"]
[BlackElo "2202"]
[WhiteTeam "UKR"]
[BlackTeam "ESP"]
[WhiteClock "0:01:09"]
[BlackClock "0:00:25"]

1. e4 {[%clk 0:02:55]}  c5 {[%clk 0:02:59]} 2. Nf3 {[%clk 0:02:50]}  d6 {[%clk 0:02:59]} 3. Bb5+ {[%clk 0:02:43]}  Nd7 {[%clk 0:02:59]} 4. a4 {[%clk 0:02:39]}  a6 {[%clk 0:03:00]} 5. Be2 {[%clk 0:02:37]}  Ngf6 {[%clk 0:03:01]} 6. Nc3 {[%clk 0:02:35]}  e5 {[%clk 0:02:45]} 7. O-O {[%clk 0:02:30]}  Be7 {[%clk 0:02:43]} 8. Bc4 {[%clk 0:02:26]}  Nb6 {[%clk 0:02:41]} 9. Ba2 {[%clk 0:02:23]}  a5 {[%clk 0:02:41]} 10. d3 {[%clk 0:02:20]}  O-O {[%clk 0:02:37]} 11. Bg5 {[%clk 0:02:18]}  Ne8 {[%clk 0:02:19]} 12. Bd2 {[%clk 0:02:09]}  Bg4 {[%clk 0:02:08]} 13. h3 {[%clk 0:02:09]}  Bh5 {[%clk 0:02:07]} 14. Nd5 {[%clk 0:01:56]}  Nxd5 {[%clk 0:01:50]} 15. Bxd5 {[%clk 0:01:57]}  Kh8 {[%clk 0:01:39]} 16. g4 {[%clk 0:01:50]}  Bg6 {[%clk 0:01:36]} 17. Bxb7 {[%clk 0:01:47]}  Rb8 {[%clk 0:01:35]} 18. Bd5 {[%clk 0:01:48]}  Rxb2 {[%clk 0:01:35]} 19. Bb3 {[%clk 0:01:46]}  c4 {[%clk 0:01:13]} 20. Bxc4 {[%clk 0:01:45]}  Rb8 {[%clk 0:00:55]} 21. Qe1 {[%clk 0:01:42]}  Ra8 {[%clk 0:00:53]} 22. Bd5 {[%clk 0:01:40]}  Ra7 {[%clk 0:00:51]} 23. Rb1 {[%clk 0:01:36]}  Nc7 {[%clk 0:00:46]} 24. Bxa5 {[%clk 0:01:30]}  Qd7 {[%clk 0:00:46]} 25. Bb3 {[%clk 0:01:24]}  d5 {[%clk 0:00:43]} 26. Bb6 {[%clk 0:01:23]}  dxe4 {[%clk 0:00:42]} 27. Nxe5 {[%clk 0:01:20]}  Qd6 {[%clk 0:00:30]} 28. Nxg6+ {[%clk 0:01:18]}  fxg6 {[%clk 0:00:29]} 29. Bxa7 {[%clk 0:01:16]}  exd3 {[%clk 0:00:27]} 30. cxd3 {[%clk 0:01:13]}  Qxd3 {[%clk 0:00:25]} 31. Qxe7 {[%clk 0:01:09]} 1-0

[Event "December 5 Early 2023"]
[Site "https://www.chess.com"]
[Date "2023.12.05"]
[Round "6"]
[White "Yushko, Olga"]
[Black "Baches Garcia, Guillermo"]
[Result "0-1"]
[Board "120"]
[TimeControl "180+1"]
[WhiteFideId "14114500"]
[BlackFideId "2209764"]
[WhiteElo "2124"]
[BlackElo "2529"]
[WhiteTeam "UKR"]
[BlackTeam "ESP"]
[WhiteClock "0:00:40"]
[BlackClock "0:00:35"]

1. d4 {[%clk 0:02:59]}  d5 {[%clk 0:03:00]} 2. c4 {[%clk 0:02:59]}  e6 {[%clk 0:03:01]} 3. cxd5 {[%clk 0:02:57]}  exd5 {[%clk 0:03:00]} 4. Nc3 {[%clk 0:02:58]}  a6 {[%clk 0:03:01]} 5. Nf3 {[%clk 0:02:57]}  Nf6 {[%clk 0:03:01]} 6. Bg5 {[%clk 0:02:47]}  Be6 {[%clk 0:03:00]} 7. e3 {[%clk 0:02:46]}  Nbd7 {[%clk 0:03:00]} 8. Bd3 {[%clk 0:02:46]}  Bd6 {[%clk 0:03:00]} 9. Rc1 {[%clk 0:02:46]}  c6 {[%clk 0:03:00]} 10. O-O {[%clk 0:02:45]}  Qc7 {[%clk 0:03:00]} 11. Re1 {[%clk 0:02:32]}  h6 {[%clk 0:02:58]} 12. Bh4 {[%clk 0:02:32]}  g5 {[%clk 0:02:54]} 13. Bg3 {[%clk 0:02:32]}  Bxg3 {[%clk 0:02:54]} 14. hxg3 {[%clk 0:02:32]}  Qd6 {[%clk 0:02:54]} 15. Qb3 {[%clk 0:02:29]}  Rb8 {[%clk 0:02:26]} 16. e4 {[%clk 0:02:27]}  dxe4 {[%clk 0:02:24]} 17. Nxe4 {[%clk 0:02:26]}  Nxe4 {[%clk 0:02:12]} 18. Rxe4 {[%clk 0:02:26]}  Nf6 {[%clk 0:02:08]} 19. Re5 {[%clk 0:02:20]}  Qxe5 {[%clk 0:01:58]} 20. Nxe5 {[%clk 0:01:58]}  Bxb3 {[%clk 0:01:58]} 21. axb3 {[%clk 0:01:59]}  Rd8 {[%clk 0:01:47]} 22. Bc4 {[%clk 0:01:57]}  Nd5 {[%clk 0:01:39]} 23. Ng4 {[%clk 0:01:51]}  Kf8 {[%clk 0:01:34]} 24. Re1 {[%clk 0:01:46]}  Re8 {[%clk 0:01:27]} 25. Ne5 {[%clk 0:01:45]}  Kg7 {[%clk 0:01:21]} 26. Rc1 {[%clk 0:01:39]}  Re7 {[%clk 0:01:19]} 27. Nd3 {[%clk 0:01:17]}  Rd8 {[%clk 0:01:16]} 28. Nc5 {[%clk 0:01:14]}  Nf6 {[%clk 0:01:06]} 29. Rd1 {[%clk 0:01:10]}  Rd6 {[%clk 0:01:00]} 30. f3 {[%clk 0:01:07]}  a5 {[%clk 0:00:54]} 31. Kf2 {[%clk 0:01:02]}  b6 {[%clk 0:00:54]} 32. Na6 {[%clk 0:00:54]}  Ra7 {[%clk 0:00:47]} 33. Be2 {[%clk 0:00:51]}  Nd5 {[%clk 0:00:44]} 34. Rc1 {[%clk 0:00:50]}  Nb4 {[%clk 0:00:43]} 35. Nb8 {[%clk 0:00:49]}  Rxd4 {[%clk 0:00:38]} 36. Nxc6 {[%clk 0:00:49]}  Nxc6 {[%clk 0:00:38]} 37. Rxc6 {[%clk 0:00:48]}  Rd2 {[%clk 0:00:37]} 38. Rxb6 {[%clk 0:00:40]}  Re7 {[%clk 0:00:35]} 0-1

[Event "December 5 Early 2023"]
[Site "https://www.chess.com"]
[Date "2023.12.05"]
[Round "6"]
[White "GMVignirVatnar"]
[Black "Lopusiewicz, Piotr"]
[Result "1-0"]
[Board "121"]
[TimeControl "180+1"]
[BlackFideId "1116029"]
[WhiteElo "2760"]
[BlackElo "2457"]
[BlackTeam "POL"]
[WhiteClock "0:00:49"]
[BlackClock "0:00:09"]

1. d4 {[%clk 0:03:00]}  Nf6 {[%clk 0:02:59]} 2. c4 {[%clk 0:03:00]}  e6 {[%clk 0:02:59]} 3. g3 {[%clk 0:03:00]}  d5 {[%clk 0:02:59]} 4. Bg2 {[%clk 0:03:01]}  dxc4 {[%clk 0:03:00]} 5. Nf3 {[%clk 0:03:01]}  c5 {[%clk 0:03:00]} 6. O-O {[%clk 0:03:00]}  Nc6 {[%clk 0:03:00]} 7. dxc5 {[%clk 0:02:59]}  Qxd1 {[%clk 0:03:00]} 8. Rxd1 {[%clk 0:03:00]}  Bxc5 {[%clk 0:03:00]} 9. Nbd2 {[%clk 0:03:01]}  c3 {[%clk 0:03:00]} 10. bxc3 {[%clk 0:03:02]}  O-O {[%clk 0:03:00]} 11. Nb3 {[%clk 0:03:02]}  Be7 {[%clk 0:03:00]} 12. Nfd4 {[%clk 0:02:53]}  Bd7 {[%clk 0:02:55]} 13. Bg5 {[%clk 0:02:53]}  Rac8 {[%clk 0:02:44]} 14. Nb5 {[%clk 0:01:49]}  Rfd8 {[%clk 0:02:34]} 15. Bxf6 {[%clk 0:01:45]}  Bxf6 {[%clk 0:02:10]} 16. Nc5 {[%clk 0:01:42]}  Be8 {[%clk 0:01:59]} 17. Nxb7 {[%clk 0:01:40]}  Rxd1+ {[%clk 0:01:55]} 18. Rxd1 {[%clk 0:01:40]}  Ne7 {[%clk 0:00:58]} 19. N5d6 {[%clk 0:01:35]}  Rb8 {[%clk 0:00:57]} 20. Nxe8 {[%clk 0:01:28]}  Rxe8 {[%clk 0:00:57]} 21. c4 {[%clk 0:01:29]}  Nf5 {[%clk 0:00:49]} 22. c5 {[%clk 0:01:24]}  Rc8 {[%clk 0:00:34]} 23. Rd7 {[%clk 0:01:07]}  Kf8 {[%clk 0:00:23]} 24. c6 {[%clk 0:01:02]}  Nd4 {[%clk 0:00:18]} 25. Nd6 {[%clk 0:00:49]}  Rxc6 {[%clk 0:00:14]} 26. Bxc6 {[%clk 0:00:48]}  Nxc6 {[%clk 0:00:13]} 27. Rxf7+ {[%clk 0:00:49]}  Kg8 {[%clk 0:00:14]} 28. Rc7 {[%clk 0:00:49]}  Nd4 {[%clk 0:00:09]} 29. Rc8+ {[%clk 0:00:49]} 1-0

[Event "December 5 Early 2023"]
[Site "https://www.chess.com"]
[Date "2023.12.05"]
[Round "6"]
[White "Ozen, Metehan"]
[Black "Korchmar, Vasiliy"]
[Result "1-0"]
[Board "122"]
[TimeControl "180+1"]
[WhiteFideId "34596054"]
[BlackFideId "24131750"]
[WhiteElo "2457"]
[BlackElo "2741"]
[WhiteTeam "TUR"]
[BlackTeam "RUS"]
[WhiteClock "0:00:20"]
[BlackClock "0:00:03"]

1. c4 {[%clk 0:02:55]}  e6 {[%clk 0:02:54]} 2. Nc3 {[%clk 0:02:55]}  d5 {[%clk 0:02:53]} 3. cxd5 {[%clk 0:02:55]}  exd5 {[%clk 0:02:53]} 4. d4 {[%clk 0:02:56]}  c6 {[%clk 0:02:53]} 5. a3 {[%clk 0:02:53]}  Bd6 {[%clk 0:02:52]} 6. Nf3 {[%clk 0:02:52]}  Bf5 {[%clk 0:02:52]} 7. Bg5 {[%clk 0:02:52]}  Nf6 {[%clk 0:02:49]} 8. e3 {[%clk 0:02:52]}  h6 {[%clk 0:02:48]} 9. Bh4 {[%clk 0:02:51]}  Nbd7 {[%clk 0:02:49]} 10. Bd3 {[%clk 0:02:51]}  Bxd3 {[%clk 0:02:49]} 11. Qxd3 {[%clk 0:02:52]}  O-O {[%clk 0:02:49]} 12. O-O {[%clk 0:02:53]}  Qe8 {[%clk 0:02:44]} 13. Nd2 {[%clk 0:02:51]}  Qe6 {[%clk 0:02:40]} 14. Bg3 {[%clk 0:02:50]}  Bxg3 {[%clk 0:02:39]} 15. hxg3 {[%clk 0:02:51]}  Ng4 {[%clk 0:02:37]} 16. Ne2 {[%clk 0:02:47]}  Rae8 {[%clk 0:02:23]} 17. Rae1 {[%clk 0:02:47]}  Qd6 {[%clk 0:02:05]} 18. Nf4 {[%clk 0:02:38]}  g5 {[%clk 0:02:02]} 19. Ne2 {[%clk 0:02:31]}  f5 {[%clk 0:01:58]} 20. Nf3 {[%clk 0:02:31]}  Qg6 {[%clk 0:01:44]} 21. b4 {[%clk 0:02:23]}  b5 {[%clk 0:01:39]} 22. a4 {[%clk 0:02:19]}  bxa4 {[%clk 0:01:35]} 23. Ra1 {[%clk 0:02:18]}  Nb6 {[%clk 0:01:35]} 24. Nc3 {[%clk 0:02:18]}  Qh5 {[%clk 0:01:30]} 25. Nxa4 {[%clk 0:02:13]}  Nc4 {[%clk 0:01:29]} 26. Nc5 {[%clk 0:02:10]}  a5 {[%clk 0:00:50]} 27. bxa5 {[%clk 0:02:08]}  f4 {[%clk 0:00:51]} 28. exf4 {[%clk 0:02:05]}  gxf4 {[%clk 0:00:51]} 29. Nh4 {[%clk 0:01:41]}  Rf6 {[%clk 0:00:35]} 30. a6 {[%clk 0:01:38]}  Nce3 {[%clk 0:00:16]} 31. fxe3 {[%clk 0:01:20]}  Rxe3 {[%clk 0:00:17]} 32. a7 {[%clk 0:01:08]}  Rxd3 {[%clk 0:00:17]} 33. a8=Q+ {[%clk 0:01:08]}  Rf8 {[%clk 0:00:18]} 34. Qxf8+ {[%clk 0:00:41]}  Kxf8 {[%clk 0:00:19]} 35. Rxf4+ {[%clk 0:00:41]}  Ke7 {[%clk 0:00:20]} 36. Ra7+ {[%clk 0:00:40]}  Ke8 {[%clk 0:00:15]} 37. Nxd3 {[%clk 0:00:37]}  Ne3 {[%clk 0:00:16]} 38. Nf3 {[%clk 0:00:28]}  Qg6 {[%clk 0:00:03]} 39. Nfe5 {[%clk 0:00:26]}  Qxg3 {[%clk 0:00:03]} 40. Ra8+ {[%clk 0:00:24]}  Ke7 {[%clk 0:00:04]} 41. Rf7+ {[%clk 0:00:24]}  Ke6 {[%clk 0:00:02]} 42. Nc5+ {[%clk 0:00:20]}  Kd6 {[%clk 0:00:03]} 43. Rd8# {[%clk 0:00:20]} 1-0

[Event "December 5 Early 2023"]
[Site "https://www.chess.com"]
[Date "2023.12.05"]
[Round "6"]
[White "Eilers, Stefan"]
[Black "Aradhya, Garg"]
[Result "0-1"]
[Board "124"]
[TimeControl "180+1"]
[WhiteFideId "4609565"]
[BlackFideId "25006746"]
[WhiteElo "2436"]
[BlackElo "2695"]
[WhiteTeam "GER"]
[BlackTeam "IND"]
[WhiteClock "0:00:11"]
[BlackClock "0:00:37"]

1. d4 {[%clk 0:03:00]}  d5 {[%clk 0:02:59]} 2. Nc3 {[%clk 0:03:01]}  Nf6 {[%clk 0:02:58]} 3. Bf4 {[%clk 0:03:01]}  c5 {[%clk 0:02:58]} 4. e4 {[%clk 0:03:01]}  Nxe4 {[%clk 0:02:53]} 5. Nxe4 {[%clk 0:03:00]}  dxe4 {[%clk 0:02:53]} 6. dxc5 {[%clk 0:03:01]}  Qa5+ {[%clk 0:02:54]} 7. c3 {[%clk 0:03:01]}  Qxc5 {[%clk 0:02:54]} 8. Qa4+ {[%clk 0:03:02]}  Nc6 {[%clk 0:02:54]} 9. Qxe4 {[%clk 0:03:02]}  g6 {[%clk 0:02:55]} 10. Nf3 {[%clk 0:03:01]}  Bg7 {[%clk 0:02:55]} 11. Rd1 {[%clk 0:03:01]}  O-O {[%clk 0:02:51]} 12. Be3 {[%clk 0:03:01]}  Qa5 {[%clk 0:02:47]} 13. Bc4 {[%clk 0:03:01]}  Bf5 {[%clk 0:02:46]} 14. Qh4 {[%clk 0:03:00]}  b5 {[%clk 0:02:40]} 15. Bd5 {[%clk 0:02:53]}  Rac8 {[%clk 0:02:40]} 16. O-O {[%clk 0:02:52]}  e6 {[%clk 0:02:32]} 17. Bb3 {[%clk 0:02:29]}  b4 {[%clk 0:02:32]} 18. Bh6 {[%clk 0:02:19]}  bxc3 {[%clk 0:02:31]} 19. Ng5 {[%clk 0:02:13]}  Qb4 {[%clk 0:01:53]} 20. f4 {[%clk 0:01:53]}  c2 {[%clk 0:01:05]} 21. Bxg7 {[%clk 0:01:39]}  Kxg7 {[%clk 0:01:03]} 22. Qxh7+ {[%clk 0:01:38]}  Kf6 {[%clk 0:01:02]} 23. Qh4 {[%clk 0:01:18]}  Rh8 {[%clk 0:00:49]} 24. Ne4+ {[%clk 0:01:11]}  Kg7 {[%clk 0:00:49]} 25. Qf6+ {[%clk 0:01:07]}  Kg8 {[%clk 0:00:49]} 26. Nd6 {[%clk 0:00:43]}  Qc5+ {[%clk 0:00:41]} 27. Kh1 {[%clk 0:00:44]}  Rf8 {[%clk 0:00:38]} 28. Nxf5 {[%clk 0:00:32]}  Qxf5 {[%clk 0:00:38]} 29. Qxf5 {[%clk 0:00:11]}  cxd1=Q {[%clk 0:00:37]} 0-1

[Event "December 5 Early 2023"]
[Site "https://www.chess.com"]
[Date "2023.12.05"]
[Round "6"]
[White "Timerkhanov, Alexander"]
[Black "Topalov, Aleksandar"]
[Result "1-0"]
[Board "125"]
[TimeControl "180+1"]
[WhiteFideId "24177938"]
[BlackFideId "925659"]
[WhiteElo "2645"]
[BlackElo "2434"]
[WhiteTeam "RUS"]
[BlackTeam "SRB"]
[WhiteClock "0:01:35"]
[BlackClock "0:00:46"]

1. d4 {[%clk 0:03:00]}  Nf6 {[%clk 0:02:59]} 2. Bg5 {[%clk 0:03:01]}  g6 {[%clk 0:02:58]} 3. Bxf6 {[%clk 0:03:01]}  exf6 {[%clk 0:02:58]} 4. e3 {[%clk 0:03:02]}  f5 {[%clk 0:02:59]} 5. g3 {[%clk 0:03:01]}  h5 {[%clk 0:02:55]} 6. h4 {[%clk 0:03:01]}  d6 {[%clk 0:02:55]} 7. Bg2 {[%clk 0:03:01]}  Nd7 {[%clk 0:02:55]} 8. Ne2 {[%clk 0:03:01]}  Nf6 {[%clk 0:02:55]} 9. c4 {[%clk 0:03:01]}  Ng4 {[%clk 0:02:54]} 10. Nbc3 {[%clk 0:03:00]}  Bh6 {[%clk 0:02:54]} 11. Nf4 {[%clk 0:02:57]}  a5 {[%clk 0:02:48]} 12. Qd3 {[%clk 0:02:48]}  c6 {[%clk 0:02:47]} 13. a3 {[%clk 0:02:45]}  O-O {[%clk 0:02:46]} 14. O-O {[%clk 0:02:44]}  g5 {[%clk 0:02:47]} 15. hxg5 {[%clk 0:02:44]}  Qxg5 {[%clk 0:02:47]} 16. f3 {[%clk 0:02:40]}  Nxe3 {[%clk 0:02:14]} 17. Qxe3 {[%clk 0:02:40]}  Qxg3 {[%clk 0:02:14]} 18. Nce2 {[%clk 0:02:40]}  Qh4 {[%clk 0:02:11]} 19. Qf2 {[%clk 0:02:31]}  Qg5 {[%clk 0:02:06]} 20. Nh3 {[%clk 0:02:27]}  Qf6 {[%clk 0:02:03]} 21. f4 {[%clk 0:02:26]}  Bd7 {[%clk 0:02:01]} 22. Bf3 {[%clk 0:02:25]}  h4 {[%clk 0:01:57]} 23. Kh2 {[%clk 0:02:21]}  Kh8 {[%clk 0:01:54]} 24. Rg1 {[%clk 0:02:19]}  Rg8 {[%clk 0:01:53]} 25. Rxg8+ {[%clk 0:02:19]}  Rxg8 {[%clk 0:01:53]} 26. Rg1 {[%clk 0:02:20]}  Rg6 {[%clk 0:01:51]} 27. Ng5 {[%clk 0:02:16]}  Kg7 {[%clk 0:01:01]} 28. Qxh4 {[%clk 0:02:10]}  c5 {[%clk 0:01:00]} 29. Bd5 {[%clk 0:01:36]}  cxd4 {[%clk 0:00:56]} 30. Ng3 {[%clk 0:01:36]}  Be6 {[%clk 0:00:46]} 31. Nh5+ {[%clk 0:01:35]} 1-0

[Event "December 5 Early 2023"]
[Site "https://www.chess.com"]
[Date "2023.12.05"]
[Round "6"]
[White "Swicarz, Maciej"]
[Black "Gubajdullin, Alexei"]
[Result "1-0"]
[Board "126"]
[TimeControl "180+1"]
[WhiteFideId "1113585"]
[BlackFideId "4141202"]
[WhiteElo "2434"]
[BlackElo "2627"]
[WhiteTeam "POL"]
[BlackTeam "RUS"]
[WhiteClock "0:00:11"]
[BlackClock "0:00:00"]

1. e4 {[%clk 0:03:00]}  g6 {[%clk 0:02:58]} 2. d4 {[%clk 0:03:00]}  Bg7 {[%clk 0:02:58]} 3. Nc3 {[%clk 0:03:00]}  d6 {[%clk 0:02:58]} 4. Be3 {[%clk 0:02:59]}  a6 {[%clk 0:02:56]} 5. a4 {[%clk 0:02:54]}  Nf6 {[%clk 0:02:53]} 6. Be2 {[%clk 0:02:51]}  Nc6 {[%clk 0:02:53]} 7. h3 {[%clk 0:02:50]}  a5 {[%clk 0:02:52]} 8. Nf3 {[%clk 0:02:49]}  O-O {[%clk 0:02:51]} 9. O-O {[%clk 0:02:48]}  Nd7 {[%clk 0:02:49]} 10. Qd2 {[%clk 0:02:45]}  Nb4 {[%clk 0:02:48]} 11. Bc4 {[%clk 0:02:39]}  c6 {[%clk 0:02:32]} 12. Rac1 {[%clk 0:02:32]}  Qc7 {[%clk 0:02:13]} 13. Bh6 {[%clk 0:02:30]}  Nb6 {[%clk 0:02:09]} 14. Bb3 {[%clk 0:02:27]}  Be6 {[%clk 0:02:08]} 15. Bxe6 {[%clk 0:02:23]}  fxe6 {[%clk 0:02:08]} 16. Bxg7 {[%clk 0:02:17]}  Kxg7 {[%clk 0:02:08]} 17. Ng5 {[%clk 0:02:16]}  Qd7 {[%clk 0:02:07]} 18. d5 {[%clk 0:02:14]}  e5 {[%clk 0:02:05]} 19. Ne6+ {[%clk 0:02:12]}  Kg8 {[%clk 0:02:05]} 20. Nxf8 {[%clk 0:02:11]}  Rxf8 {[%clk 0:02:04]} 21. dxc6 {[%clk 0:02:07]}  bxc6 {[%clk 0:02:04]} 22. b3 {[%clk 0:02:04]}  Qe6 {[%clk 0:01:57]} 23. f4 {[%clk 0:02:01]}  exf4 {[%clk 0:01:56]} 24. Rxf4 {[%clk 0:02:00]}  Rxf4 {[%clk 0:01:51]} 25. Qxf4 {[%clk 0:01:59]}  Nd7 {[%clk 0:01:48]} 26. Rf1 {[%clk 0:01:56]}  Nxc2 {[%clk 0:01:39]} 27. Qg4 {[%clk 0:01:14]}  Qxg4 {[%clk 0:01:36]} 28. hxg4 {[%clk 0:01:15]}  Nc5 {[%clk 0:01:31]} 29. Rb1 {[%clk 0:01:06]}  Kf7 {[%clk 0:01:30]} 30. Kf2 {[%clk 0:01:00]}  Ke6 {[%clk 0:01:30]} 31. Kf3 {[%clk 0:00:59]}  Nxb3 {[%clk 0:01:28]} 32. Kf4 {[%clk 0:00:52]}  Ncd4 {[%clk 0:00:51]} 33. Rh1 {[%clk 0:00:48]}  d5 {[%clk 0:00:39]} 34. Rxh7 {[%clk 0:00:45]}  Kd6 {[%clk 0:00:38]} 35. e5+ {[%clk 0:00:40]}  Ke6 {[%clk 0:00:38]} 36. Rg7 {[%clk 0:00:37]}  Nc5 {[%clk 0:00:29]} 37. Rxg6+ {[%clk 0:00:36]}  Kf7 {[%clk 0:00:27]} 38. Rh6 {[%clk 0:00:32]}  Kg7 {[%clk 0:00:27]} 39. g5 {[%clk 0:00:25]}  Nde6+ {[%clk 0:00:21]} 40. Kf5 {[%clk 0:00:23]}  Nd4+ {[%clk 0:00:19]} 41. Kg4 {[%clk 0:00:22]}  e6 {[%clk 0:00:18]} 42. Rh1 {[%clk 0:00:20]}  Nd3 {[%clk 0:00:17]} 43. Rb1 {[%clk 0:00:17]}  Nxe5+ {[%clk 0:00:15]} 44. Kh5 {[%clk 0:00:17]}  Nf5 {[%clk 0:00:08]} 45. Rb7+ {[%clk 0:00:17]}  Kg8 {[%clk 0:00:08]} 46. Ra7 {[%clk 0:00:16]}  Ng7+ {[%clk 0:00:07]} 47. Kh4 {[%clk 0:00:15]}  Nf5+ {[%clk 0:00:06]} 48. Kh3 {[%clk 0:00:13]}  d4 {[%clk 0:00:06]} 49. Ne4 {[%clk 0:00:13]}  d3 {[%clk 0:00:07]} 50. Rxa5 {[%clk 0:00:12]}  Nc4 {[%clk 0:00:00]} 51. Ra7 {[%clk 0:00:11]} 1-0

[Event "December 5 Early 2023"]
[Site "https://www.chess.com"]
[Date "2023.12.05"]
[Round "6"]
[White "Can, Melih Kaan"]
[Black "Agibileg, Uurtsaikh"]
[Result "0-1"]
[Board "128"]
[TimeControl "180+1"]
[WhiteFideId "6317383"]
[BlackFideId "4901606"]
[WhiteElo "2430"]
[BlackElo "2612"]
[WhiteTeam "TUR"]
[BlackTeam "MGL"]
[WhiteClock "0:00:27"]
[BlackClock "0:01:31"]

1. e4 {[%clk 0:02:48]}  e5 {[%clk 0:02:58]} 2. Nf3 {[%clk 0:02:48]}  Nc6 {[%clk 0:02:58]} 3. d4 {[%clk 0:02:48]}  exd4 {[%clk 0:02:57]} 4. Nxd4 {[%clk 0:02:49]}  Nf6 {[%clk 0:02:57]} 5. Nc3 {[%clk 0:02:49]}  Bb4 {[%clk 0:02:56]} 6. Nxc6 {[%clk 0:02:49]}  bxc6 {[%clk 0:02:57]} 7. Bd3 {[%clk 0:02:50]}  O-O {[%clk 0:02:56]} 8. Bg5 {[%clk 0:02:46]}  h6 {[%clk 0:02:54]} 9. Bh4 {[%clk 0:02:45]}  d5 {[%clk 0:02:54]} 10. O-O {[%clk 0:02:44]}  g5 {[%clk 0:02:50]} 11. Bg3 {[%clk 0:02:44]}  Bxc3 {[%clk 0:02:50]} 12. bxc3 {[%clk 0:02:43]}  dxe4 {[%clk 0:02:50]} 13. Bc4 {[%clk 0:02:40]}  Qe7 {[%clk 0:02:44]} 14. Re1 {[%clk 0:02:37]}  Bf5 {[%clk 0:02:44]} 15. Qe2 {[%clk 0:02:28]}  Rfe8 {[%clk 0:02:42]} 16. Rab1 {[%clk 0:02:28]}  Nd5 {[%clk 0:02:37]} 17. Bxd5 {[%clk 0:02:13]}  cxd5 {[%clk 0:02:37]} 18. Rb7 {[%clk 0:02:14]}  Rac8 {[%clk 0:02:32]} 19. Qa6 {[%clk 0:02:00]}  Qe6 {[%clk 0:02:28]} 20. Qxa7 {[%clk 0:02:00]}  c6 {[%clk 0:02:16]} 21. Qc5 {[%clk 0:01:48]}  Ra8 {[%clk 0:01:48]} 22. Rb6 {[%clk 0:01:32]}  Rec8 {[%clk 0:01:47]} 23. a3 {[%clk 0:01:32]}  Ra4 {[%clk 0:01:40]} 24. Bd6 {[%clk 0:01:20]}  Rc4 {[%clk 0:01:38]} 25. Qa5 {[%clk 0:00:57]}  Qxd6 {[%clk 0:01:38]} 26. Qa6 {[%clk 0:00:58]}  Rxc3 {[%clk 0:01:36]} 27. h3 {[%clk 0:00:53]}  Rxc2 {[%clk 0:01:35]} 28. g4 {[%clk 0:00:27]}  Bd7 {[%clk 0:01:31]} 0-1